bitfinex/quotes_SOLUSD_20250616
["timestamp","ask_amount","ask_price","bid_price","bid_amount"]
[1750046660053,4.74349897,156.08,156.03,49.6953094]
[1750046660576,5.6,156.09,156.05,0.14216157]
[1750046660752,5.6,156.09,156.05,4.88566054]
[1750046662285,5.6,156.09,156.05,0.14216157]
[1750046663680,5.6,156.09,156.06,0.28432314]
[1750046663862,5.6,156.09,156.07,0.14216157]
[1750046667170,5.6,156.09,156.06,31.04566054]
[1750046668863,5.6,156.09,156.08,23.81963254]
[1750046670686,5.6,156.09,156.08,19.07613357]
[1750046670867,5.6,156.09,156.08,23.81963254]
[1750046672475,4.74349897,156.13,156.1,0.14216157]
[1750046675172,1.5796,156.16,156.12,0.14216157]
[1750046675383,4.74349897,156.14,156.11,0.42648471]
[1750046675677,4.74349897,156.14,156.11,0.28432314]
[1750046676189,4.74349897,156.13,156.11,0.28432314]
[1750046677190,1.5796,156.16,156.11,0.28432314]
[1750046677371,4.74349897,156.13,156.11,0.28432314]
[1750046678869,4.74349897,156.12,156.11,0.28432314]
[1750046679068,4.74349897,156.12,156.1,18.64964886]
[1750046679362,4.74349897,156.11,156.1,0.28432314]
[1750046680399,4.74349897,156.12,156.1,0.28432314]
[1750046683190,4.74349897,156.13,156.11,0.28432314]
[1750046684974,10.34349897,156.14,156.11,0.28432314]
[1750046685801,10.34349897,156.14,156.11,0.14216157]
[1750046686886,5.6,156.14,156.11,0.14216157]
[1750046687075,5.6,156.14,156.11,18.79181043]
[1750046688200,10.34349897,156.14,156.11,0.14216157]
[1750046688702,5.6,156.14,156.11,18.79181043]
[1750046689892,5.6,156.14,156.11,0.14216157]
[1750046691287,5.6,156.14,156.11,4.88566054]
[1750046692214,5.6,156.14,156.13,0.14216157]
[1750046692806,10.34349897,156.14,156.12,18.933972]
[1750046693886,4.74349897,156.13,156.12,18.79181043]
[1750046694215,4.74349897,156.13,156.12,18.933972]
[1750046694413,4.74349897,156.13,156.09,89.34216157]
[1750046694592,5.6,156.14,156.1,18.64964886]
[1750046694786,4.74349897,156.11,156.1,18.933972]
[1750046695709,4.74349897,156.11,156.1,0.28432314]
[1750046702723,5.6,156.14,156.1,0.28432314]
[1750046703020,4.74349897,156.12,156.1,0.28432314]
[1750046706722,4.74349897,156.11,156.1,0.28432314]
[1750046706925,10.36626299,156.14,156.1,0.28432314]
[1750046707127,5.6,156.14,156.11,18.933972]
[1750046707306,4.74349897,156.12,156.11,18.933972]
[1750046707499,4.74349897,156.12,156.11,0.28432314]
[1750046708313,4.74349897,156.13,156.11,0.28432314]
[1750046708926,5.6,156.14,156.11,0.28432314]
[1750046709322,10.34349897,156.14,156.11,0.28432314]
[1750046710405,5.6,156.14,156.12,0.14216157]
[1750046713707,10.34349897,156.14,156.12,0.14216157]
[1750046714623,5.6,156.14,156.12,0.14216157]
[1750046717036,4.74349897,156.13,156.11,18.64964886]
[1750046717331,4.74349897,156.13,156.09,89.2]
[1750046717332,4.74349897,156.13,156.1,18.64964886]
[1750046717628,4.74349897,156.13,156.11,0.28432314]
[1750046719206,10.34349897,156.14,156.11,0.28432314]
[1750046720115,5.6,156.14,156.11,0.42648471]
[1750046720314,5.6,156.14,156.11,5.16998368]
[1750046722542,5.6,156.14,156.11,0.42648471]
[1750046726944,10.34349897,156.14,156.11,0.42648471]
[1750046728348,5.6,156.14,156.11,0.42648471]
[1750046730155,4.74349897,156.15,156.11,0.42648471]
[1750046732329,4.74349897,156.16,156.11,0.42648471]
[1750046732656,4.74349897,156.15,156.11,0.42648471]
[1750046734854,4.74349897,156.16,156.11,0.42648471]
[1750046736854,4.74349897,156.15,156.11,0.42648471]
[1750046738954,3.03708006,156.15,156.11,0.42648471]
[1750046739134,3.03708006,156.13,156.1,18.64964886]
[1750046739333,3.03708006,156.12,156.1,18.64964886]
[1750046739533,3.03708006,156.12,156.09,0.14216157]
[1750046739852,3.03708006,156.12,156.09,0.42648471]
[1750046740846,4.74687273,156.12,156.09,0.42648471]
[1750046741787,4.74687273,156.13,156.09,0.42648471]
[1750046743945,4.74687273,156.11,156.09,0.28432314]
[1750046744146,4.74687273,156.1,156.08,18.64964886]
[1750046744344,1.559,156.13,156.05,18.64964886]
[1750046744345,4.74687273,156.09,156.05,18.64964886]
[1750046744545,4.74687273,156.08,156.05,18.64964886]
[1750046744754,4.74687273,156.08,156.04,18.64964886]
[1750046744968,4.74687273,156.08,156.05,0.42648471]
[1750046745169,4.74687273,156.07,156.05,0.14216157]
[1750046745852,4.74687273,156.07,156.03,0.14216157]
[1750046746061,4.74687273,156.07,156.03,0.42648471]
[1750046746668,4.74687273,156.08,156.03,0.42648471]
[1750046747274,4.74687273,156.06,156.02,18.79181043]
[1750046747791,5.52,156.08,156.0,18.79181043]
[1750046747792,4.74687273,156.04,156.0,18.79181043]
[1750046747976,4.74687273,156.05,156.01,0.28432314]
[1750046748962,4.74687273,156.05,156.01,0.14216157]
[1750046749278,1.5304,156.07,156.03,0.14216157]
[1750046749472,6.27727273,156.07,156.03,0.14216157]
[1750046749674,4.74687273,156.06,156.03,0.14216157]
[1750046751357,4.74687273,156.06,156.02,0.28432314]
[1750046751965,1.5304,156.07,156.02,0.28432314]
[1750046752268,6.27727273,156.07,156.02,5.03119587]
[1750046752652,6.27727273,156.07,156.02,0.28432314]
[1750046753493,4.74687273,156.07,156.02,0.28432314]
[1750046753656,1.6263,156.11,156.04,44.933972]
[1750046753855,5.52,156.14,156.09,23.39652159]
[1750046754055,5.52,156.14,156.11,18.64964886]
[1750046754256,5.52,156.14,156.12,0.28432314]
[1750046756778,5.52,156.14,156.12,0.42648471]
[1750046763300,5.52,156.14,156.13,4.8890343]
[1750046763598,5.52,156.14,156.13,23.8230063]
[1750046763781,5.52,156.14,156.13,19.07613357]
[1750046763985,5.52,156.14,156.13,23.8230063]
[1750046766002,5.52,156.14,156.13,19.07613357]
[1750046769697,5.52,156.14,156.13,23.8230063]
[1750046771595,5.52,156.14,156.13,30.22792527]
[1750046774083,5.52,156.14,156.13,23.8230063]
[1750046774281,4.74687273,156.17,156.14,0.14216157]
[1750046774498,13.85843078,156.18,156.16,18.933972]
[1750046774708,18.60530351,156.18,156.16,18.933972]
[1750046776597,13.85843078,156.18,156.16,18.933972]
[1750046776806,18.60530351,156.18,156.16,18.933972]
[1750046778081,13.85843078,156.18,156.16,18.933972]
[1750046779495,18.60530351,156.18,156.16,18.933972]
[1750046781711,13.85843078,156.18,156.16,18.933972]
[1750046781900,18.60530351,156.18,156.16,18.933972]
[1750046784112,13.85843078,156.18,156.16,18.933972]
[1750046785293,18.60530351,156.18,156.16,18.933972]
[1750046788133,13.85843078,156.18,156.15,26.04]
[1750046788424,4.74687273,156.17,156.15,26.04]
[1750046789121,13.85843078,156.18,156.15,26.04]
[1750046789320,4.74687273,156.17,156.15,26.04]
[1750046793234,4.74687273,156.16,156.12,18.933972]
[1750046793403,4.74687273,156.15,156.14,18.933972]
[1750046793605,4.74687273,156.15,156.14,0.28432314]
[1750046794025,4.74687273,156.16,156.14,0.28432314]
[1750046794727,13.85843078,156.18,156.14,5.17335744]
[1750046795326,18.60530351,156.18,156.14,0.42648471]
[1750046796731,4.74687273,156.17,156.14,0.42648471]
[1750046801029,4.74687273,156.17,156.14,0.28432314]
[1750046801236,4.74687273,156.16,156.14,0.28432314]
[1750046801535,4.74687273,156.16,156.12,45.09613357]
[1750046805753,9.54419958,156.17,156.12,49.8430063]
[1750046806643,4.74687273,156.17,156.12,49.8430063]
[1750046808217,4.74687273,156.16,156.12,45.09613357]
[1750046808726,9.55201355,156.16,156.12,45.09613357]
[1750046808927,4.74687273,156.16,156.12,45.09613357]
[1750046809123,9.55201355,156.16,156.12,45.09613357]
[1750046809327,4.74687273,156.16,156.12,45.09613357]
[1750046809521,9.55201355,156.16,156.12,45.09613357]
[1750046809832,4.74687273,156.16,156.12,45.09613357]
[1750046810034,9.55201355,156.16,156.12,45.09613357]
[1750046810347,4.74687273,156.16,156.12,45.09613357]
[1750046810547,9.55201355,156.16,156.12,45.09613357]
[1750046810842,4.74687273,156.16,156.12,45.09613357]
[1750046811045,9.55201355,156.16,156.12,45.09613357]
[1750046811339,4.74687273,156.16,156.12,45.09613357]
[1750046811543,9.55201355,156.16,156.12,45.09613357]
[1750046811848,4.74687273,156.16,156.12,45.09613357]
[1750046812022,9.55201355,156.16,156.12,45.09613357]
[1750046812340,4.74687273,156.16,156.12,45.09613357]
[1750046812522,9.55201355,156.16,156.12,45.09613357]
[1750046812721,4.74687273,156.16,156.12,45.09613357]
[1750046812920,7.84155123,156.16,156.12,45.09613357]
[1750046813126,7.84155123,156.17,156.12,48.13254398]
[1750046813347,3.03641041,156.17,156.12,48.13254398]
[1750046814240,7.84088239,156.17,156.12,48.13254398]
[1750046814443,4.80447198,156.17,156.15,18.933972]
[1750046814620,13.85843078,156.18,156.17,19.07613357]
[1750046816236,5.52,156.2,156.18,0.14216157]
[1750046816438,5.52,156.2,156.19,18.933972]
[1750046820930,5.52,156.2,156.19,19.07613357]
[1750046821156,13.13146357,156.28,156.2,0.14216157]
[1750046821157,9.5421649,156.25,156.2,0.14216157]
[1750046821361,4.80108415,156.24,156.22,18.933972]
[1750046821740,4.74108075,156.25,156.22,18.933972]
[1750046821931,9.5421649,156.25,156.22,18.933972]
[1750046822261,4.74108075,156.25,156.22,18.933972]
[1750046823058,4.80108415,156.26,156.22,18.933972]
[1750046823232,4.74108075,156.25,156.22,18.933972]
[1750046825760,4.74108075,156.24,156.22,18.933972]
[1750046826531,4.74108075,156.23,156.19,26.02]
[1750046826734,4.74108075,156.21,156.2,18.64964886]
[1750046826942,4.74108075,156.21,156.2,18.933972]
[1750046827152,4.74108075,156.21,156.2,18.79181043]
[1750046827764,4.74108075,156.21,156.2,18.933972]
[1750046828070,4.74108075,156.21,156.2,0.28432314]
[1750046828362,4.74108075,156.21,156.15,18.64964886]
[1750046828534,4.74108075,156.19,156.18,0.28432314]
[1750046829044,6.40868415,156.23,156.18,0.28432314]
[1750046829252,4.74108075,156.19,156.18,0.28432314]
[1750046833064,4.74108075,156.19,156.17,18.933972]
[1750046835569,4.74108075,156.18,156.17,18.933972]
[1750046836061,4.74108075,156.18,156.17,0.28432314]
[1750046837263,4.74108075,156.18,156.16,0.42648471]
[1750046837452,4.74108075,156.19,156.16,0.42648471]
[1750046838166,4.74108075,156.18,156.16,0.42648471]
[1750046839050,4.74108075,156.19,156.16,0.42648471]
[1750046842173,4.74108075,156.18,156.16,0.42648471]
[1750046845573,4.74108075,156.17,156.16,0.42648471]
[1750046845868,10.30614786,156.22,156.16,0.42648471]
[1750046846072,4.74108075,156.17,156.16,0.42648471]
[1750046847450,4.74108075,156.17,156.15,0.14216157]
[1750046849574,4.74108075,156.16,156.13,44.66964886]
[1750046849774,4.74108075,156.15,156.14,0.42648471]
[1750046850868,3.03658801,156.15,156.11,18.79181043]
[1750046851184,3.03658801,156.14,156.13,0.28432314]
[1750046852280,3.03658801,156.14,156.13,0.14216157]
[1750046852983,4.74529593,156.14,156.13,0.14216157]
[1750046855964,4.74529593,156.14,156.12,0.28432314]
[1750046856163,4.74529593,156.14,156.12,26.30432314]
[1750046858074,4.74529593,156.15,156.12,26.30432314]
[1750046858872,4.74529593,156.15,156.12,0.28432314]
[1750046859075,4.74529593,156.15,156.14,18.933972]
[1750046869502,4.74529593,156.18,156.15,0.14216157]
[1750046869686,4.74529593,156.18,156.16,18.933972]
[1750046870078,4.74529593,156.2,156.18,18.933972]
[1750046870303,10.26529593,156.22,156.19,0.14216157]
[1750046870509,10.26529593,156.22,156.2,18.933972]
[1750046870685,5.52,156.22,156.2,18.933972]
[1750046870884,5.52,156.22,156.21,0.14216157]
[1750046871091,5.52,156.22,156.21,26.16216157]
[1750046876282,5.52,156.22,156.21,45.09613357]
[1750046876698,5.52,156.22,156.21,49.8414295]
[1750046876896,5.52,156.22,156.21,48.12862702]
[1750046877089,5.52,156.22,156.21,54.53026583]
[1750046877712,5.52,156.22,156.21,45.09613357]
[1750046878313,1.598,156.27,156.21,45.09613357]
[1750046878523,3.03249345,156.25,156.23,0.14216157]
[1750046878703,3.03249345,156.25,156.24,44.953972]
[1750046878902,4.73839929,156.25,156.24,44.953972]
[1750046879310,4.73839929,156.25,156.24,18.933972]
[1750046879808,4.73839929,156.25,156.24,0.28432314]
[1750046880316,4.73839929,156.25,156.23,26.02]
[1750046880618,4.73839929,156.24,156.23,26.30432314]
[1750046882725,4.73839929,156.24,156.23,0.28432314]
[1750046886822,4.73839929,156.24,156.21,0.28432314]
[1750046887029,4.73839929,156.22,156.21,0.28432314]
[1750046888001,4.73839929,156.22,156.19,18.933972]
[1750046888203,4.73839929,156.2,156.19,18.933972]
[1750046888513,4.73839929,156.2,156.19,0.28432314]
[1750046893144,4.73839929,156.2,156.15,89.2]
[1750046893346,4.73839929,156.19,156.17,0.14216157]
[1750046893531,4.73839929,156.19,156.18,18.933972]
[1750046894039,4.73839929,156.19,156.18,0.28432314]
[1750046895120,4.73839929,156.19,156.13,18.64964886]
[1750046895345,4.73839929,156.14,156.12,89.2]
[1750046895546,4.73839929,156.13,156.1,43.48999655]
[1750046895848,26.0,156.17,156.01,22.59757247]
[1750046895849,4.73839929,156.11,156.05,44.64964886]
[1750046896025,4.73839929,156.1,156.05,4.73839929]
[1750046896348,4.73839929,156.1,156.07,19.07613357]
[1750046896561,4.73839929,156.1,156.07,45.07613357]
[1750046896862,4.73839929,156.1,156.07,44.64964886]
[1750046897151,4.73839929,156.1,156.08,0.42648471]
[1750046897764,4.73839929,156.09,156.04,18.64964886]
[1750046897927,26.0,156.12,156.07,18.64964886]
[1750046897928,4.73839929,156.08,156.07,18.64964886]
[1750046898247,4.73839929,156.08,156.07,19.07613357]
[1750046898649,4.73839929,156.08,156.07,0.42648471]
[1750046898852,26.0,156.12,156.08,0.42648471]
[1750046899033,4.73839929,156.14,156.1,19.07613357]
[1750046900348,4.73839929,156.13,156.1,19.07613357]
[1750046900848,4.73839929,156.12,156.1,19.07613357]
[1750046901152,27.5756,156.15,156.1,19.07613357]
[1750046901333,4.73839929,156.12,156.1,19.07613357]
[1750046902430,27.5756,156.15,156.1,19.07613357]
[1750046902630,4.73839929,156.13,156.1,19.07613357]
[1750046905051,27.5756,156.15,156.1,19.07613357]
[1750046905253,4.73839929,156.13,156.1,19.07613357]
[1750046905439,4.73839929,156.14,156.1,19.07613357]
[1750046906046,4.73839929,156.13,156.1,19.07613357]
[1750046906757,5.52,156.16,156.1,19.07613357]
[1750046906949,4.73839929,156.14,156.1,19.07613357]
[1750046907255,4.73839929,156.13,156.1,19.07613357]
[1750046908535,4.73839929,156.12,156.1,19.07613357]
[1750046909458,4.73839929,156.13,156.1,19.07613357]
[1750046911356,5.52,156.16,156.1,19.07613357]
[1750046911559,4.73839929,156.13,156.1,19.07613357]
[1750046913451,5.52,156.16,156.1,19.07613357]
[1750046913637,4.73839929,156.12,156.1,19.07613357]
[1750046913836,5.52,156.16,156.1,19.07613357]
[1750046914038,4.73839929,156.12,156.1,19.07613357]
[1750046914565,4.73839929,156.12,156.1,18.79181043]
[1750046919766,4.73839929,156.13,156.1,18.79181043]
[1750046920763,4.73839929,156.13,156.1,25.19793034]
[1750046920964,4.73839929,156.13,156.1,18.79181043]
[1750046921171,4.73839929,156.13,156.1,25.19792047]
[1750046921667,4.73839929,156.13,156.1,18.79181043]
[1750046921839,5.52,156.16,156.1,25.19795694]
[1750046922043,4.73839929,156.13,156.1,18.79181043]
[1750046922460,4.73839929,156.13,156.1,25.19794031]
[1750046922668,4.73839929,156.14,156.11,0.28432314]
[1750046930763,4.73839929,156.12,156.1,18.64964886]
[1750046931079,4.73839929,156.12,156.11,0.28432314]
[1750046931283,4.73839929,156.12,156.11,0.14216157]
[1750046931675,4.73839929,156.13,156.11,0.28432314]
[1750046932376,16.8564695,156.18,156.11,0.28432314]
[1750046932377,4.73839929,156.12,156.11,0.28432314]
[1750046934683,4.73839929,156.13,156.11,0.28432314]
[1750046934881,4.73839929,156.12,156.11,0.28432314]
[1750046939481,4.73839929,156.12,156.07,89.2]
[1750046939672,4.73839929,156.11,156.1,18.933972]
[1750046941059,4.73839929,156.12,156.1,18.933972]
[1750046941856,4.73839929,156.13,156.11,0.14216157]
[1750046942061,4.73839929,156.15,156.11,0.14216157]
[1750046942358,4.80356834,156.14,156.11,0.14216157]
[1750046942580,4.73839929,156.15,156.13,18.933972]
[1750046942767,4.80356834,156.14,156.13,18.933972]
[1750046943464,31.52,156.18,156.14,0.14216157]
[1750046943679,4.73839929,156.16,156.14,0.14216157]
[1750046943887,4.80455907,156.15,156.14,0.14216157]
[1750046944273,4.73839929,156.16,156.14,0.14216157]
[1750046945184,4.73839929,156.15,156.13,18.933972]
[1750046945397,4.73839929,156.14,156.13,0.28432314]
[1750046945580,9.54212381,156.14,156.12,18.933972]
[1750046945767,4.80428808,156.16,156.13,0.14216157]
[1750046945966,4.80428808,156.17,156.15,0.14216157]
[1750046946271,4.80428808,156.16,156.15,0.14216157]
[1750046946483,4.80428808,156.17,156.15,0.14216157]
[1750046946790,5.52,156.18,156.15,0.14216157]
[1750046946969,4.80354163,156.17,156.15,0.14216157]
[1750046947170,4.80230931,156.17,156.15,0.14216157]
[1750046947364,4.80230931,156.2,156.17,18.933972]
[1750046947558,4.80230931,156.22,156.18,4.88056086]
[1750046947764,4.80230931,156.21,156.18,0.14216157]
[1750046948031,4.73839929,156.22,156.18,0.14216157]
[1750046948165,9.54054422,156.22,156.18,0.14216157]
[1750046948488,4.80214493,156.22,156.18,0.14216157]
[1750046948660,4.73839929,156.21,156.18,0.14216157]
[1750046951692,4.73839929,156.19,156.17,44.86964886]
[1750046951893,4.73839929,156.19,156.18,0.14216157]
[1750046952203,4.73839929,156.2,156.18,0.14216157]
[1750046954303,4.73839929,156.19,156.17,0.14216157]
[1750046956897,4.73839929,156.18,156.14,89.2]
[1750046957105,4.73839929,156.18,156.16,0.14216157]
[1750046957607,4.73839929,156.19,156.16,0.14216157]
[1750046959321,4.73839929,156.21,156.18,0.14216157]
[1750046959499,4.73839929,156.2,156.18,0.14216157]
[1750046959704,1.6131,156.23,156.18,0.14216157]
[1750046959889,4.73839929,156.21,156.18,0.14216157]
[1750046962114,4.73839929,156.21,156.17,0.42648471]
[1750046962880,4.73839929,156.21,156.17,6.82974649]
[1750046963083,4.73839929,156.22,156.17,11.56814578]
[1750046963410,4.73839929,156.22,156.2,0.28432314]
[1750046969040,4.73839929,156.21,156.2,0.28432314]
[1750046970130,4.73839929,156.21,156.16,89.2]
[1750046970314,4.73839929,156.19,156.17,44.80964886]
[1750046970513,4.73839929,156.19,156.18,0.28432314]
[1750046971430,4.73839929,156.19,156.15,18.79181043]
[1750046971431,4.73839929,156.19,156.17,18.64964886]
[1750046971627,4.73839929,156.19,156.18,0.28432314]
[1750046971830,4.73839929,156.19,156.18,0.14216157]
[1750046972015,4.73839929,156.19,156.18,0.28432314]
[1750046974044,4.73839929,156.19,156.15,19.07613357]
[1750046974244,4.73839929,156.19,156.17,0.28432314]
[1750046974537,4.73839929,156.19,156.17,19.07613357]
[1750046978855,4.73839929,156.18,156.13,18.79181043]
[1750046979056,4.73839929,156.16,156.15,0.28432314]
[1750046979916,4.73839929,156.16,156.15,0.14216157]
[1750046980120,4.73839929,156.16,156.14,26.28216157]
[1750046980317,26.0,156.19,156.16,0.14216157]
[1750046981557,4.73839929,156.17,156.16,0.14216157]
[1750046983528,4.73839929,156.17,156.13,0.14216157]
[1750046983729,26.0,156.19,156.13,0.14216157]
[1750046983730,4.73839929,156.15,156.13,26.28216157]
[1750046984146,4.73839929,156.16,156.13,26.28216157]
[1750046984848,4.73839929,156.16,156.13,0.14216157]
[1750046985019,4.73839929,156.16,156.13,26.28216157]
[1750046985353,4.73839929,156.16,156.13,0.14216157]
[1750046985608,4.73839929,156.16,156.13,26.28216157]
[1750046991472,4.73839929,156.17,156.13,26.28216157]
[1750046991673,9.54054422,156.19,156.15,0.14216157]
[1750046991846,4.73839929,156.19,156.15,0.14216157]
[1750046992045,4.80214493,156.2,156.15,0.14216157]
[1750046992046,4.73839929,156.2,156.15,0.14216157]
[1750046993104,4.73839929,156.19,156.15,0.14216157]
[1750046993384,4.73839929,156.2,156.17,0.14216157]
[1750046993556,9.54054422,156.21,156.17,0.14216157]
[1750046993874,4.73839929,156.21,156.17,0.14216157]
[1750046994241,10.33839929,156.22,156.17,0.14216157]
[1750046994645,15.14054422,156.22,156.18,18.933972]
[1750046994843,5.6,156.22,156.19,0.14216157]
[1750046995071,5.6,156.22,156.19,26.26216157]
[1750047001781,4.73839929,156.2,156.14,4.73839929]
[1750047001955,4.73839929,156.19,156.15,44.74964886]
[1750047002557,4.73839929,156.21,156.17,18.64964886]
[1750047002884,5.6,156.22,156.2,0.28432314]
[1750047003773,10.33839929,156.22,156.2,0.28432314]
[1750047004178,4.73839929,156.21,156.2,0.28432314]
[1750047004892,10.33839929,156.22,156.2,0.28432314]
[1750047006895,5.6,156.22,156.2,0.42648471]
[1750047009068,10.33839929,156.22,156.2,0.28432314]
[1750047010973,5.6,156.22,156.2,0.42648471]
[1750047015582,5.6,156.22,156.21,23.81453286]
[1750047015790,5.6,156.22,156.21,49.87453286]
[1750047015991,5.6,156.22,156.21,45.13613357]
[1750047018381,3.03266962,156.25,156.22,0.14216157]
[1750047018791,4.73906843,156.25,156.22,0.14216157]
[1750047020598,4.73906843,156.24,156.22,0.28432314]
[1750047021304,4.73906843,156.25,156.22,0.28432314]
[1750047021980,4.73906843,156.24,156.22,0.28432314]
[1750047022687,26.8306842,156.26,156.22,0.28432314]
[1750047023007,4.73906843,156.23,156.19,19.07613357]
[1750047023197,4.73906843,156.22,156.21,0.28432314]
[1750047023512,4.73906843,156.23,156.21,0.14216157]
[1750047023806,4.73906843,156.23,156.21,0.28432314]
[1750047026698,4.73906843,156.23,156.2,18.933972]
[1750047028389,26.8306842,156.26,156.21,0.14216157]
[1750047028585,4.73906843,156.25,156.21,0.14216157]
[1750047029815,4.73906843,156.24,156.21,0.14216157]
[1750047032422,4.73906843,156.23,156.2,18.933972]
[1750047033192,4.73906843,156.22,156.2,18.933972]
[1750047033805,4.73906843,156.23,156.2,18.933972]
[1750047035006,4.73906843,156.23,156.19,19.07613357]
[1750047035215,4.73906843,156.23,156.19,45.11613357]
[1750047037501,9.51983252,156.23,156.19,45.11613357]
[1750047037701,4.73906843,156.24,156.19,45.11613357]
[1750047038025,4.78076409,156.23,156.19,45.11613357]
[1750047039128,7.81423818,156.23,156.19,45.11613357]
[1750047039330,3.03347409,156.23,156.19,45.11613357]
[1750047039728,7.81423818,156.23,156.19,45.11613357]
[1750047039915,3.03347409,156.23,156.19,45.11613357]
[1750047040332,7.81423818,156.23,156.19,45.11613357]
[1750047040507,3.03347409,156.23,156.19,45.11613357]
[1750047040903,7.81423818,156.23,156.19,45.11613357]
[1750047041198,3.03347409,156.23,156.19,45.11613357]
[1750047041601,7.81423818,156.23,156.19,45.11613357]
[1750047041816,3.03347409,156.23,156.19,45.11613357]
[1750047042232,7.81423818,156.23,156.19,45.11613357]
[1750047042419,3.03347409,156.23,156.19,45.11613357]
[1750047042933,7.81423818,156.23,156.19,45.11613357]
[1750047043228,3.03347409,156.23,156.21,18.933972]
[1750047043627,7.81423818,156.23,156.21,18.933972]
[1750047043829,3.03347409,156.23,156.21,18.933972]
[1750047044040,3.03347409,156.22,156.21,0.28432314]
[1750047046530,3.03347409,156.23,156.21,0.28432314]
[1750047046727,3.03347409,156.22,156.21,0.28432314]
[1750047047528,7.81423818,156.22,156.21,0.28432314]
[1750047047729,3.03347409,156.22,156.2,18.933972]
[1750047048216,7.81423818,156.23,156.2,18.933972]
[1750047048536,4.78076409,156.22,156.2,18.933972]
[1750047052850,4.78076409,156.22,156.21,0.14216157]
[1750047053029,3.03347409,156.23,156.2,18.933972]
[1750047053230,4.78076409,156.22,156.2,18.933972]
[1750047054537,7.81423818,156.22,156.17,6.4556]
[1750047054741,7.81423818,156.21,156.19,18.64964886]
[1750047054942,3.03347409,156.2,156.19,18.79181043]
[1750047055152,3.03347409,156.21,156.2,0.28432314]
[1750047055638,7.81423818,156.21,156.2,0.28432314]
[1750047055957,7.81423818,156.21,156.18,18.933972]
[1750047056125,3.03347409,156.19,156.18,18.933972]
[1750047056441,3.03347409,156.19,156.18,18.79181043]
[1750047056643,3.03347409,156.19,156.18,18.933972]
[1750047057422,3.03347409,156.19,156.15,18.64964886]
[1750047057624,3.03347409,156.16,156.1,90.7232]
[1750047057852,3.03347409,156.13,156.09,6.3897]
[1750047058027,3.03347409,156.12,156.1,26.02]
[1750047058225,3.03347409,156.12,156.1,0.14216157]
[1750047058734,4.78076409,156.15,156.1,0.14216157]
[1750047058956,3.03347409,156.12,156.1,0.14216157]
[1750047059162,3.03347409,156.12,156.09,26.02]
[1750047059650,3.03347409,156.12,156.1,0.42648471]
[1750047060649,4.78076409,156.17,156.16,44.64964886]
[1750047060956,24.57917439,156.22,156.18,0.42648471]
[1750047061136,24.57917439,156.22,156.2,18.933972]
[1750047065153,24.57917439,156.22,156.19,26.06]
[1750047065154,4.73960754,156.21,156.1,16.01472398]
[1750047065336,4.73960754,156.19,156.15,18.64964886]
[1750047065652,4.73960754,156.18,156.16,26.06]
[1750047065953,4.73960754,156.18,156.17,0.28432314]
[1750047066334,4.73960754,156.18,156.16,26.06]
[1750047066534,4.73960754,156.18,156.17,0.14216157]
[1750047066752,4.73960754,156.18,156.17,0.28432314]
[1750047066934,4.73960754,156.19,156.17,0.28432314]
[1750047068070,4.73960754,156.18,156.17,0.28432314]
[1750047070144,36.51785708,156.22,156.17,0.28432314]
[1750047070348,4.73960754,156.18,156.17,0.28432314]
[1750047074841,4.73960754,156.18,156.07,6.4556]
[1750047075036,4.73960754,156.12,156.07,11.19520754]
[1750047075236,4.73960754,156.12,156.08,45.11613357]
[1750047076069,4.73960754,156.12,156.08,18.64964886]
[1750047076364,4.73960754,156.12,156.1,18.64964886]
[1750047076562,4.73960754,156.12,156.11,0.28432314]
[1750047079070,4.73960754,156.12,156.08,19.07613357]
[1750047079366,4.73960754,156.12,156.1,18.933972]
[1750047085479,26.0,156.15,156.1,18.933972]
[1750047085775,26.0,156.15,156.12,18.933972]
[1750047085978,26.0,156.15,156.12,44.973972]
[1750047086360,4.73960754,156.16,156.12,44.973972]
[1750047087154,26.0,156.18,156.12,44.973972]
[1750047087356,30.09917439,156.22,156.16,4.88176911]
[1750047087583,4.73960754,156.21,156.18,18.933972]
[1750047087777,5.52,156.22,156.18,18.933972]
[1750047087778,4.73960754,156.19,156.18,0.28432314]
[1750047090262,4.73960754,156.21,156.18,18.933972]
[1750047091696,10.25960754,156.22,156.19,0.14216157]
[1750047093178,5.52,156.22,156.19,0.14216157]
[1750047100098,5.52,156.22,156.21,0.14216157]
[1750047100584,5.52,156.22,156.21,23.81574111]
[1750047101572,5.52,156.22,156.21,19.07613357]
[1750047102178,23.71516413,156.25,156.21,23.81574111]
[1750047102568,23.71516413,156.25,156.23,0.14216157]
[1750047102769,23.71516413,156.25,156.23,26.16216157]
[1750047103471,23.71516413,156.25,156.24,19.07613357]
[1750047103685,4.73960754,156.28,156.25,0.14216157]
[1750047104299,7.1869,156.29,156.25,0.14216157]